Cogmind - Beta 16 @@@ ROGUE MODE // 2025.11.19 @ 15:14:40 Player: Denialbot Result: Self-destructed Performance ------------- Evolutions (1) 500 Regions Visited (2) 400 Robots Destroyed (18) 90 Value Destroyed (419) 419 Prototype IDs (0) 0 Alien Tech Used (0) 0 Bonus (0) 0 TOTAL SCORE: 1409 Bonus ------- None Cogmind --------- Core Integrity 287/400 Matter 196/300 Energy 27/100 System Corruption 0% Temperature Cool (0) Movement Flying (35) Location -9/Materials Parts ------- > --- POWER (2) -------- (None) > --- PROPULSION (3) --- VTOL Module > --- UTILITY (2) ------ Improved Heat Sink Weight Redist. System > --- WEAPON (2) ------- Light Assault Rifle Heavy Assault Rifle > --- INVENTORY (5) ---- Flight Unit Improved Heat Sink Seismic Detector Improved Light Armor Plating Improved Light Armor Plating Peak State ------------ > --- POWER ------------ Light Ion Engine Light Nuclear Core > --- PROPULSION ------- Flight Unit Flight Unit VTOL Module > --- UTILITY ---------- Improved Heat Sink Weight Redist. System > --- WEAPON ----------- Light Assault Rifle Heavy Assault Rifle > --- INVENTORY -------- Flight Unit Improved Heat Sink Seismic Detector Improved Light Armor Plating Improved Light Armor Plating [Rating: 17] Favorites ----------- Power Light Ion Engine Engine Light Ion Engine Power Core Light Nuclear Core Propulsion Flight Unit Treads Light Treads Flight Unit Flight Unit Utility Weight Redist. System Device Weight Redist. System Storage Small Storage Unit Processor Targeting Computer Protection Improved Light Armor Plating Weapon Light Assault Rifle Energy Gun Small Laser Ballistic Gun Light Assault Rifle Ballistic Cannon Light Cannon Build | -11 -10 -9 ------- Run | Yrd Mat Mat Slots Evolved 2 | . . 2 Power 1 | . . 1 Propulsion 1 | . . 1 Utility . | . . . Weapon . | . . . Parts Attached 38 | 6 18 14 Power 6 | 1 3 2 Engine 5 | 1 3 1 Core 1 | . . 1 Reactor . | . . . Propulsion 14 | 2 6 6 Treads 2 | 2 . . Leg . | . . . Wheel . | . . . Hover . | . . . Flight 12 | . 6 6 Utility 8 | 1 5 2 Device 3 | . 3 . Storage 1 | 1 . . Processor 2 | . 2 . Hackware . | . . . Protection 2 | . . 2 Artifact . | . . . Weapon 10 | 2 4 4 Energy Gun 4 | 2 2 . Energy Cannon . | . . . Ballistic Gun 5 | . 1 4 Ballistic Cannon 1 | . 1 . Launcher . | . . . Special Weapon . | . . . Impact Weapon . | . . . Slashing Weapon . | . . . Piercing Weapon . | . . . Special Melee Weapon . | . . . Unidentified Prototypes . | . . . Parts Lost 5 | . 1 4 Power 2 | . . 2 Propulsion 2 | . . 2 Utility 1 | . 1 . Weapon . | . . . Highest Loss Streak 3 | . 1 3 To Critical Strikes . | . . . Average Backups 5 | 5 5 4 Power . | . . . Propulsion 2 | 3 2 1 Utility 2 | . 1 3 Weapon . | 1 . . Tool/Special . | . . . Unused Backups 14 | . 10 4 Power 1 | . 1 . Propulsion 7 | . 6 1 Utility 4 | . 1 3 Weapon 2 | . 2 . Tool/Special . | . . . Average Slot Usage (%) 94 | . 97 90 Engine 13 | . 14 13 Core 1 | . . 3 Treads 4 | . 6 . Flight 24 | . 21 29 Device 16 | . 16 16 Storage 2 | . 3 . Processor 3 | . 6 . Protection 1 | . . 5 Energy Gun 12 | . 19 . Ballistic Gun 9 | . 3 21 Ballistic Cannon 3 | . 5 . Peak Build Rating 17 | 6 9 17 Average Rating 8 | 4 7 12 On Entrance 4 | . 6 8 Avg Prop Armor Cover (%) . | . . . Naked Turns . | . . . Heaviest Build 15 | 14 15 15 Greatest Support 40 | 40 40 21 Greatest Overweight (x) 1 | 1 . . Average Overweight (x) . | . . . Largest Inventory Capacity 8 | 8 8 5 Average Capacity 5 | 7 5 5 Most Carried 8 | 8 8 5 Average Carried 5 | 5 5 4 Final Capacity 8 | 8 5 5 Final Carried 7 | 7 5 5 Class Distribution -------------------- 60% | Mutant 34% | Scavenger-Mutant 4% | Scavenger-Sprinter Dominant Class ---------------- Mutant | -10/Materials Scavenger-Mutant | -9/Materials Resources | -11 -10 -9 ----------- Run | Yrd Mat Mat Matter Collected 724 | 260 244 220 Remotely . | . . . Salvage Created 677 | 76 332 269 Parts 34 | 2 17 15 Haulers Intercepted 2 | . 2 . Recyclers Shooed 1 | . . 1 Parts Field Recycled . | . . . Retrieved Matter . | . . . Parts Self-Destructed . | . . . Prevented . | . . . Parts Restored . | . . . Kills | -11 -10 -9 ------- Run | Yrd Mat Mat Combat Hostiles Destroyed 14 | . 7 7 Guns 11 | . 4 7 Cannons 3 | . 3 . Classes Destroyed 5 | 1 3 1 Hauler 2 | . 2 . Recycler 1 | 1 . . Watcher 1 | . . 1 Swarmer 4 | . 1 3 Grunt 10 | . 6 4 Best Kill Streak 4 | 1 4 3 Combat Bots Only 4 | . 4 3 Max Kills in Single Turn 1 | 1 1 1 Gunslinging . | . . . Exploded . | . . . Melee . | . . . Uniques/NPCs Destroyed . | . . . Combat | -11 -10 -9 -------- Run | Yrd Mat Mat Hostile Shots Fired 121 | . 39 82 Missed 45 | . 13 32 Hits 76 | . 26 50 Projectile 76 | . 26 50 Damage Taken 857 | . 284 573 Core 223 | . 110 113 Absorbed by Shields . | . . . Core Remaining (%) 78 | 100 56 . Volleys Fired 81 | 5 28 48 Largest 2 | 2 2 2 Hottest 90 | 90 90 43 Shots Fired 160 | 10 54 96 Gun 142 | 10 36 96 Cannon 18 | . 18 . Launcher . | . . . Special . | . . . Kinetic 120 | . 24 96 Thermal 31 | 5 26 . Explosive . | . . . Electromagnetic 9 | 5 4 . Robot Hit Streak 12 | 4 10 12 Robot Miss Streak 8 | 1 4 8 Penetration Max . | . . . Secondary Targets . | . . . Shots Hit Robots 99 | 7 32 60 Core Hits 34 | 2 16 16 Critical Kills . | . . . Critical Parts Destroyed 1 | . . 1 Critical Strikes 1 | . . 1 Destroy 1 | . . 1 Melee Attacks . | . . . Impact . | . . . Slashing . | . . . Piercing . | . . . Sneak Attacks . | . . . Combat Hostiles . | . . . Follow-up Attacks . | . . . Damage Inflicted 1222 | 92 441 689 Guns 1065 | 92 284 689 Cannons 157 | . 157 . Explosions . | . . . Melee . | . . . Ramming . | . . . Kinetic 876 | . 187 689 Thermal 261 | 51 210 . Explosive . | . . . Electromagnetic 85 | 41 44 . Impact . | . . . Slashing . | . . . Piercing . | . . . Highest Corruption . | . . . Average Corruption . | . . . Corruption Purged . | . . . Corruption Blocked . | . . . Overload Shots . | . . . Overflow Damage 15 | . 15 . Projectiles 15 | . 15 . Explosions . | . . . Melee . | . . . Knockbacks 1 | . 1 . Impact . | . . . Kinetic 1 | . 1 . Secondary . | . . . Self-Inflicted Damage . | . . . Shots . | . . . Rammed . | . . . Targets Rammed . | . . . Kicked . | . . . Crushed . | . . . Highest Temperature 264 | 90 264 79 Average Temperature 56 | 40 74 21 Received Heat Transfer 360 | . 144 216 Siege Activations . | . . . Martial Activations . | . . . Shielding Activations . | . . . Robots Disrupted . | . . . Combat Hostiles . | . . . Robots Corrupted . | . . . Combat Hostiles . | . . . Parts Fried . | . . . Impact Corruptions . | . . . Robots Melted . | . . . Combat Hostiles . | . . . Parts Melted . | . . . Heat Transferred 647 | 148 499 . Parts Sabotaged . | . . . Parts Stolen . | . . . Parts Stripped . | . . . Power Chain Reactions . | . . . Alert | -11 -10 -9 ------- Run | Yrd Mat Mat Maximum Alert Level . | . . . Low Security (%) 100 | 100 100 100 Level 1 . | . . . Level 2 . | . . . Level 3 . | . . . Level 4 . | . . . Level 5 . | . . . High Security . | . . . Max Security . | . . . Peak Influence 73 | 5 73 67 Initial 17 | . . 17 Average 25 | . 20 42 Influence Increases 410 | 5 218 187 Destroy 0b10 Robot/C 280 | . 140 140 Destroy 0b10 Robot/NC 20 | 5 10 5 Destroy Leader 66 | . 44 22 Successful Hack 43 | . 23 20 Destroy Structure 1 | . 1 . Influence Decreases 396 | 5 175 216 Entered New Map 26 | . . 26 Time Decay 290 | 5 135 150 Lost Part 50 | . 10 40 Purge Threat 30 | . 30 . Squads Dispatched 5 | . 4 1 Investigation 2 | . 2 . Extermination . | . . . Reinforcement 3 | . 2 1 Assault . | . . . Garrison . | . . . Intercept . | . . . Searches Triggered . | . . . Construction Impeded . | . . . Haulers Reinforced . | . . . Active Scanning Responses . | . . . Cargo Convoy Interrupts . | . . . Stealth | -11 -10 -9 --------- Run | Yrd Mat Mat Distress Signals 3 | . 1 2 Communications Jammed . | . . . Distress Signals . | . . . Times Spotted 19 | . 8 11 Peak Tracking Total 6 | . 3 6 Tactical Retreats . | . . . Traps | -11 -10 -9 ------- Run | Yrd Mat Mat Traps Triggered 1 | . 1 . Indirectly . | . . . Trap Hack Attempts . | . . . Triggered . | . . . Disarmed 3 | . 3 . Reprogrammed . | . . . Reused . | . . . Traps Extracted . | . . . Installed . | . . . Triggered . | . . . Machines | -11 -10 -9 ---------- Run | Yrd Mat Mat Machines Disabled . | . . . Max in Single Turn . | . . . Machines Repaired . | . . . Machines Dismantled . | . . . Machines Sabotaged . | . . . Overloaded Fab Kills . | . . . Hacking | -11 -10 -9 --------- Run | Yrd Mat Mat Machines Accessed 12 | . 9 3 Terminals 9 | . 7 2 Fabricators . | . . . Repair Stations 1 | . 1 . Recycling Units 1 | . 1 . Scanalyzers 1 | . . 1 Garrison Access . | . . . Total Hacks 48 | . 36 12 Successful 28 | . 21 7 Failed 19 | . 15 4 Catastrophic 1 | . 1 . Database Lockouts 1 | . . 1 Manual . | . . . Terminals 37 | . 31 6 Fabricators . | . . . Repair Stations 2 | . 2 . Recycling Units 3 | . 3 . Scanalyzers 6 | . . 6 Garrison Access . | . . . Terminal Hacks 20 | . 18 2 Recycling Unit Index 1 | . 1 . Alert Level 4 | . 4 . Unreport Threat 1 | . 1 . Locate Traps 4 | . 4 . Disarm Traps 1 | . 1 . Dispatch Records 2 | . 1 1 Maintenance Status 1 | . 1 . Transport Status 1 | . 1 . Investigation Status 2 | . 2 . Recall Investigation 1 | . 1 . Hauler Manifests 2 | . 1 1 Fabricator Hacks . | . . . Repair Station Hacks . | . . . Recycling Unit Hacks 3 | . 3 . Process 1 | . 1 . Report Inventory 1 | . 1 . Retrieve Matter 1 | . 1 . Scanalyzer 5 | . . 5 Insert Component 2 | . . 2 Analyze 1 | . . 1 Retrieve Study 2 | . . 2 Garrison Access Hacks . | . . . Unauthorized Hacks . | . . . Terminals . | . . . Fabricators . | . . . Repair Stations . | . . . Recycling Units . | . . . Scanalyzers . | . . . Garrison Access . | . . . Data Cores Recovered . | . . . Used . | . . . Hacking Detections 11 | . 8 3 Full Trace Events 1 | . 1 . Feedback Events . | . . . Feedback Blocked . | . . . Robot Schematics Acquired . | . . . Robots Built . | . . . Authchips . | . . . Time . | . . . Total Robot Build Rating . | . . . Part Schematics Acquired 1 | . . 1 Parts Built . | . . . Authchips . | . . . Time . | . . . Total Part Build Rating . | . . . Part Studies Acquired 2 | . . 2 Parts Repaired . | . . . Time . | . . . Parts Recycled . | . . . Recycled Matter 166 | . 166 . Retrieved Matter 166 | . 166 . Retrieved Components . | . . . Parts Scanalyzed 1 | . . 1 Part Schematics Acquired 1 | . . 1 Parts Damaged . | . . . Bothacking | -11 -10 -9 ------------ Run | Yrd Mat Mat Used RIF Installer . | . . . Robots Hacked . | . . . Non-combat . | . . . Combat . | . . . Robot Hacks Applied . | . . . Relay Couplers Released . | . . . Fabnet Peak Effective % . | . . . Robots Rewired . | . . . Allies Hacked . | . . . Hacks Repelled . | . . . Allies | -11 -10 -9 -------- Run | Yrd Mat Mat Total Allies . | . . . Largest Group . | . . . Highest-Rated Group . | . . . Highest-Rated Ally . | . . . Total Orders . | . . . Ally Attacks . | . . . Total Damage . | . . . Kills . | . . . Allies Corrupted . | . . . Allies Melted . | . . . Intel | -11 -10 -9 ------- Run | Yrd Mat Mat Active Infowar (turns) 470 | . 452 18 Optics 38 | . 38 . Seismic 451 | . 433 18 Robot Analysis Total . | . . . Derelict Logs Recovered . | . . . Drone Launches . | . . . Drone Recoveries . | . . . Exploration | -11 -10 -9 ------------- Run | Yrd Mat Mat Turns Passed 998 | 110 575 313 Spaces Moved 1289 | 53 841 395 Core 10 | 10 . . Treads 115 | 43 72 . Legs . | . . . Wheels . | . . . Hover . | . . . Flight 1164 | . 769 395 Fastest Speed 32 | 50 37 32 Average Speed 47 | 144 47 33 Slowest Speed 160 | 160 160 37 Overloaded Moves . | . . . Propulsion Burnouts . | . . . Robots Hopped 2 | . 2 . Potential Cave-ins . | . . . Cave-ins Triggered . | . . . Exploration Rate (%) 42 | 5 98 25 Regions Visited 2 Branch Regions . Pre-discovered Areas . | . . . Known Exits Taken . | . . . Unknown Exits Taken 2 | 1 1 . Scrap Searched . | . . . Spaces Dug . | . . . Terrain Destroyed . | . . . Melee . | . . . Projectile . | . . . AOE . | . . . Terrain Rammed . | . . . Walls Destroyed . | . . . Machines Disabled . | . . . Actions | -11 -10 -9 --------- Run | Yrd Mat Mat Total 1535 | 76 967 492 Wait 44 | . 38 6 Move 1283 | 52 836 395 Hop 2 | . 2 . Pick Up 46 | 13 22 11 Fast Attach 3 | . 1 2 Attach 12 | 6 4 2 Detach 2 | . . 2 Swap 25 | . 13 12 Drop 37 | . 23 14 Fire 81 | 5 28 48 Melee . | . . . Ram . | . . . Kick . | . . . Crush . | . . . Escape Stasis . | . . . Rewire . | . . . Trap . | . . . Miscellaneous . | . . . Route ------- -11/Scrapyard -10/Materials (discovered 4 exits: *Mat x3 / [*Min]) -9/Materials History --------- Turn | Location | Event 28 | -11/Scrapyard | Discovered new exit (range 13) 111 | -11/Scrapyard | Entered Materials 112 | -10/Materials | Met a group of wandering Federalists 228 | -10/Materials | Discovered new exit (range 7) 312 | -10/Materials | Build established: Mutant 350 | -10/Materials | Discovered new exit (range 10) 424 | -10/Materials | Discovered new exit (range 16) 475 | -10/Materials | Discovered new exit (range 11) 686 | -10/Materials | Entered another Materials area 686 | -9/Materials | Evolved 2 slots: Power x1, Propulsion x1 897 | -9/Materials | Central database locked down 984 | -9/Materials | Lost 3 parts (2p1n) 999 | -9/Materials | Self-destructed Last Messages --------------- K-01 Serf cleans the Atomic Centrifuge. W-16 Scout destroyed. Destroyed Heat Sink. K-01 Serf collects debris. Lgt. Nuclear Core destroyed. G-34 Mercenary destroyed. K-01 Serf collects debris. Atomic Centrifuge disabled. K-01 Serf collects debris. R-06 Scavenger collects Aluminum Leg. K-01 Serf collects debris. R-06 Scavenger collects Sml. Laser. K-01 Serf collects debris. G-34 Mercenary destroyed. Acquired 48 matter. Acquired 23 matter. R-06 Scavenger collects Hover Unit. Y-45 Defender suffers critical hit (Destroy). Destroyed Imp. Ion Engine. Flight Unit+ destroyed. Map ----- +----------------------------------------------------+ | ########## ###### #????????????????????????? | | #????????# #????# #????????????????????????? | | ########## #????# #????????????????????????? | | # # #????#######????????????????????????? | | # # #???????????????????????????????????? | | # # #???????????????????????????????????? | | # # #???????????????????????????????????? | | # # #???????????######??????????????????? | | # + #???????????# #??????????????????? | | # # #???????????# !! #??????????????????? | | # # #??#######??# !! #??????????????????? | | # # #### #### ! #??????????????????? | | ########## + #???? ?????????????? | | ?????????# " #### ] !#??? ?????????????? | | ?????????# #??######??? #?????????????? | | #############/### #??????????? ######????????? | | """ ## ## ##??????????? T ?????????? | | """ ## """ ## #??????????? +????????? | | """ ## """ ## #??????????? #????????? | | ## """ ## #??????????? ?????????? | | ## ## #??????????? ?????????? | | = ## ## #?????????? ?????????? | | ###+############## #?????????? ??????????? | | ^ #?????????? """ ?????????? | | ^ ########### """ ?#???????? | | @YY % "" #???????? | | ##########+#################### #???????? | | #???# #????????????# #???????? | | #???# """" """" #???????????? #???????? | | #???# """" """" #???????????? #???????? | | #???# """" """" #??????????? *! #???????? | | #???# #??????????? ! ! ??????? | | ##################??????????* ????? | | # #?????????????????* ????? | | # """ """ #????????????????#####+#####+#####?????? | | # """ "T" #??????????????????????????? ?????????? | | # """ " " #???????????????????????????? #????????? | | # ] #?????????????????????????????#????????? | | # [ #??????????????????????????????????????? | | # #??????????????????????????????????????? | | + #??????????????????????????????????????? | | ###########??????????????????????????????????????? | | #????????????????????????????????????????????????? | | #????????????????????????????????????????????????? | | #????????????????????????????????????????????????? | | ?????????????????????????????????????????????????? | | ?????????????????????????????????????????????????? | | ?????????????????????????????????????????????????? | | ?????????????????????????????????????????????????? | | ?????????????????????????????????????????????????? | +----------------------------------------------------+ Best States ------------- Heat Dissipation 42 Energy Generation 19 Energy Capacity 250 Matter Stores 300 Matter Capacity 300 Sight Range 18 Terrain Scan Density 10 Additional Mass Support 6 Armor Coverage 150 Evasion (%) 63 Targeting Accuracy 5 Recoil Reduction 2 Item Schematics ----------------- Flight Unit | -9/Materials | Scanalyzed Robot Schematics ------------------ None Fabricated ------------ Nothing Repaired ---------- Nothing Studied --------- VTOL Module | -9/Materials | Hacked Flight Unit | -9/Materials | Hacked Alien Tech Used ----------------- None Achievements -------------- DATA ERROR: Steam Global Achievement% Item+ Novice Programmer Organ Harvest Spot Them First Challenges ------------ None Game ------ Seed LatentLongswordSaw Manual? 0 Play Time 00:36:27 Cumulative 5.9 hours Start 2025.11.19 @ 14:38:07 End 2025.11.19 @ 15:14:40 Sessions 1 Manual Loads 0 Difficulty Rogue Special Mode None Game No. 9 Rogue 9 Adventurer 0 Explorer 0 Win Type - Total 0 Types 0/0/0/0/0/0/0/0/0/0 Lore% 1 Gallery% 7 Achievement% 6 Wizard Run 0 Options --------- Layout 1 ASCII 0 Keyboard 0 Movement Mouse Keybinds 0 Fullscreen 1 Font 24/Smallcaps Map View 50x35 Zoom Use 0% Tactical HUD 0 Map Filters NONE Filters NONE Steam 1 RUN: 5d07ba7d-2730-4b9d-a49a-1a26d2d071a6